bitfinex-derivatives/quotes_SOLF0:USTF0_20250227
["timestamp","ask_amount","ask_price","bid_price","bid_amount"]
[1740642948173,199.7288,141.58,141.5,6.27401977]
[1740642948481,0.04544758,141.55,141.53,0.05308023]
[1740642948670,4.99474758,141.55,141.53,0.05308023]
[1740642949774,0.04544758,141.55,141.49,11.2]
[1740642949982,0.04544758,141.55,141.44,18.8612]
[1740642950179,1.09624696,141.56,141.45,4.76859529]
[1740642950382,1.09624696,141.56,141.44,7.6612]
[1740642950580,1.09624696,141.56,141.45,6.27693696]
[1740642951088,0.05313008,141.52,141.45,6.27693696]
[1740642951282,0.05313008,141.52,141.44,7.6612]
[1740642952279,0.05313008,141.52,141.45,6.27710908]
[1740642952482,4.9509,141.5,141.44,12.6138]
[1740642952682,4.9509,141.5,141.44,16.4861]
[1740642952885,0.05223899,141.48,141.44,16.4861]
[1740642953484,0.05223899,141.48,141.45,6.27598084]
[1740642954282,0.05223899,141.48,141.44,16.4861]
[1740642956785,0.05223899,141.48,141.45,4.9524]
[1740642962796,192.0,141.55,141.44,11.5335]
[1740642962998,7.7288,141.58,141.45,12.56966066]
[1740642963298,1.09618491,141.57,141.46,4.76559552]
[1740642963495,4.9494,141.54,141.49,4.9509]
[1740642964001,0.04889075,141.53,141.5,4.99899992]
[1740642964204,7.7288,141.58,141.5,11.24819992]
[1740642964502,361.75720014,141.59,141.5,11.24819992]
[1740642964701,116.76273216,141.59,141.54,4.9492]
[1740642964901,116.76273216,141.59,141.51,7.7252]
[1740642965101,116.76273216,141.59,141.52,4.75829542]
[1740642965300,116.76273216,141.59,141.53,192.38]
[1740642965500,0.04738526,141.57,141.54,0.05051166]
[1740642967298,4.9491,141.55,141.54,0.05051166]
[1740642967603,0.04738526,141.57,141.54,0.05051166]
[1740642967797,4.9487,141.56,141.54,0.05051166]
[1740642968002,0.04738526,141.57,141.54,0.05051166]
[1740642968195,1.1434551,141.57,141.54,0.05051166]
[1740642968402,22.3434551,141.57,141.46,15.39631095]
[1740642968594,1.09606984,141.56,141.46,15.39631095]
[1740642968799,4.9494,141.54,141.46,15.39631095]
[1740642969501,0.04729096,141.51,141.49,0.0532687]
[1740642970303,0.04729096,141.51,141.49,5.0043687]
[1740642970497,0.04729096,141.51,141.49,0.0532687]
[1740642971107,0.04729096,141.51,141.5,4.9508]
[1740642972293,0.04729096,141.51,141.49,0.0532687]
[1740642972500,0.04729096,141.51,141.49,5.0043687]
[1740642972705,0.04729096,141.51,141.49,0.0532687]
[1740642976099,4.9508,141.5,141.49,0.0532687]
[1740642979112,4.99789096,141.51,141.49,0.0532687]
[1740642979408,0.04729096,141.51,141.49,0.0532687]
[1740642980910,4.99799096,141.51,141.49,0.0532687]
[1740642982106,4.9508,141.5,141.49,0.0532687]
[1740642983110,0.04729096,141.51,141.49,0.0532687]
[1740642988915,4.9495,141.54,141.49,5.0043687]
[1740642989115,4.9495,141.54,141.49,4.9511]
[1740642989421,4.9489,141.56,141.5,4.9506]
[1740642989714,4.9489,141.56,141.45,198.2655]
[1740642989920,4.9489,141.56,141.5,4.9505]
[1740642990110,0.05059392,141.52,141.5,4.9505]
[1740642992120,127.96273216,141.61,141.49,0.04975939]
[1740642992121,4.9484,141.57,141.49,11.24975939]
[1740642992315,4.9484,141.57,141.5,2.9355]
[1740642993323,0.05156038,141.55,141.52,0.04672048]
[1740642994020,0.05156038,141.55,141.52,4.99652048]
[1740642994416,0.05156038,141.55,141.53,4.9497]
[1740642995616,2.9535,141.61,141.54,4.9492]
[1740642996318,2.9535,141.61,141.5,6.0391]
[1740642996319,4.9481,141.58,141.5,6.0391]
[1740642996720,0.05103727,141.55,141.53,5.0007569]
[1740642998821,0.05103727,141.55,141.53,0.0510569]
[1740642999022,0.05103727,141.55,141.54,4.9494]
[1740642999521,7.9006,141.61,141.56,4.9487]
[1740643000126,7.9006,141.61,141.51,6.23512209]
[1740643000324,7.9006,141.61,141.57,4.9483]
[1740643000721,0.04521399,141.6,141.57,4.9483]
[1740643002723,0.04521399,141.6,141.56,4.9486]
[1740643003828,0.04521399,141.6,141.55,0.05308145]
[1740643005230,4.99251399,141.6,141.55,0.05308145]
[1740643005528,0.04521399,141.6,141.55,0.05308145]
[1740643005727,1.14105385,141.6,141.55,0.05308145]
[1740643006523,2.45215385,141.6,141.49,4.951]
[1740643006727,4.9493,141.55,141.49,4.951]
[1740643006920,1.3111,141.6,141.48,11.18]
[1740643007227,1.09601888,141.59,141.48,16.1313]
[1740643007427,0.05114446,141.55,141.52,0.04542764]
[1740643008423,4.9495,141.54,141.52,0.04542764]
[1740643008727,0.05114446,141.55,141.52,0.04542764]
[1740643010227,4.9498,141.53,141.52,0.04542764]
[1740643011022,0.05114446,141.55,141.52,0.04542764]
[1740643011227,4.9495,141.54,141.52,0.04542764]
[1740643011430,0.05114446,141.55,141.52,0.04542764]
[1740643012024,4.9494,141.54,141.52,0.04542764]
[1740643013327,0.05114446,141.55,141.52,0.04542764]
[1740643013528,4.9498,141.53,141.52,0.04542764]
[1740643029739,4.9498,141.53,141.52,2.764e-05]
[1740643041652,6.04623675,141.53,141.52,2.764e-05]
[1740643043454,6.0462633,141.53,141.52,2.764e-05]
[1740643045148,6.04627749,141.53,141.52,2.764e-05]
[1740643046856,6.04628777,141.53,141.52,2.764e-05]
[1740643050059,4.9498,141.53,141.52,2.764e-05]
[1740643050262,6.04629257,141.53,141.52,2.764e-05]
[1740643053467,6.04629836,141.53,141.52,2.764e-05]
[1740643056670,4.9498,141.53,141.52,2.764e-05]
[1740643056870,6.04629831,141.53,141.52,2.764e-05]
[1740643060176,6.04629942,141.53,141.52,2.764e-05]
[1740643068279,4.9498,141.53,141.52,2.764e-05]
[1740643068482,6.04615659,141.53,141.52,2.764e-05]
[1740643069978,6.0462556,141.53,141.52,2.764e-05]
[1740643071578,4.9498,141.53,141.52,2.764e-05]
[1740643071779,6.04625226,141.53,141.52,2.764e-05]
[1740643078283,6.04651664,141.53,141.52,2.764e-05]
[1740643081982,4.9498,141.53,141.52,2.764e-05]
[1740643082185,26.1498,141.53,141.52,2.764e-05]
[1740643082485,4.9498,141.53,141.52,2.764e-05]
[1740643082687,6.04644794,141.53,141.52,2.764e-05]
[1740643084189,4.9525,141.46,141.44,2.2]
[1740643085185,4.9526,141.45,141.44,2.24600639]
[1740643087694,0.05320917,141.46,141.44,2.24600639]
[1740643087990,1.09694751,141.51,141.44,2.24600639]
[1740643088988,0.05069016,141.49,141.44,2.24600639]
[1740643090090,4.9519,141.47,141.44,2.24600639]
[1740643099794,4.9523,141.46,141.44,2.24600639]
[1740643100900,4.9526,141.45,141.44,2.24600639]
[1740643101199,4.9526,141.45,141.44,0.04600639]
[1740643102596,6.04973542,141.45,141.44,6.39e-06]
[1740643103696,9.89873542,141.45,141.44,6.39e-06]
[1740643107799,31.09873542,141.45,141.44,6.39e-06]
[1740643119415,30.0016,141.45,141.44,6.39e-06]
[1740643119615,31.09904543,141.45,141.44,6.39e-06]
[1740643122815,31.0989776,141.45,141.44,6.39e-06]
[1740643126125,30.0016,141.45,141.44,6.39e-06]
[1740643126317,31.09883099,141.45,141.44,6.39e-06]
[1740643126519,9.9067,141.43,141.3,2.0252]
[1740643126820,204.27723099,141.42,141.3,2.0252]
[1740643127020,1.09723099,141.41,141.3,2.0252]
[1740643127220,3.7557,141.4,141.3,2.0252]
[1740643127416,4.9575,141.31,141.3,2.0252]
[1740643127919,5.00931186,141.32,141.3,2.0252]
[1740643128122,3.7557,141.4,141.3,2.0252]
[1740643128421,193.09712683,141.39,141.3,2.0252]
[1740643128621,5.00821632,141.36,141.34,0.04575365]
[1740643128821,1.09712683,141.35,141.34,0.04575365]
[1740643130319,6.05322683,141.35,141.28,1.917]
[1740643130523,1.09712683,141.34,141.28,1.917]
[1740643131524,0.05371035,141.32,141.3,0.0486247]
[1740643136323,192.0,141.39,141.3,0.0486247]
[1740643136527,192.0,141.39,141.28,1.917]
[1740643136827,196.9549,141.39,141.3,4.9577]
[1740643137431,0.04804467,141.36,141.33,0.05096227]
[1740643137837,1.1372909,141.36,141.33,0.05096227]
[1740643138933,0.04804467,141.36,141.33,0.05096227]
[1740643140426,196.9548,141.39,141.33,0.05096227]
[1740643140628,1.0892987,141.38,141.33,0.05096227]
[1740643140827,1.08929914,141.37,141.33,0.05096227]
[1740643141530,0.05234759,141.36,141.33,0.05096227]
[1740643141732,1.08929914,141.37,141.33,0.05096227]
[1740643141923,455.22160217,141.44,141.33,0.05096227]
[1740643142130,4.9544,141.4,141.28,1.917]
[1740643142330,263.22160217,141.44,141.28,1.917]
[1740643142931,0.05037789,141.37,141.34,0.0459688]
[1740643143131,1.08100517,141.42,141.28,1.917]
[1740643143433,0.04514561,141.37,141.34,0.04962749]
[1740643144136,1.12615365,141.37,141.34,0.04962749]
[1740643144535,5.00054561,141.37,141.34,0.04962749]
[1740643144936,0.04514561,141.37,141.34,0.04962749]
[1740643146237,4.9557,141.36,141.34,0.04962749]
[1740643146839,0.04514561,141.37,141.34,0.04962749]
[1740643146840,4.9561,141.35,141.34,0.04962749]
[1740643147639,4.9558,141.36,141.34,0.04962749]
[1740643147944,0.04514561,141.37,141.34,0.04962749]
[1740643149037,4.9559,141.36,141.34,0.04962749]
[1740643150046,4.9561,141.35,141.34,0.04962749]
[1740643150544,6.03735411,141.35,141.34,0.04962749]
[1740643152346,6.03745584,141.35,141.34,0.04962749]
[1740643155750,4.9561,141.35,141.34,0.04962749]
[1740643155950,6.0373644,141.35,141.34,0.04962749]
[1740643157448,4.9561,141.35,141.34,0.04962749]
[1740643157649,6.03704087,141.35,141.34,0.04962749]
[1740643163855,4.9579,141.3,141.28,1.917]
[1740643165056,5.0076623,141.3,141.28,1.96844876]
[1740643165852,4.9582,141.29,141.28,1.96844876]
[1740643166753,4.9582,141.29,141.28,0.05144876]
[1740643173760,6.03891666,141.29,141.28,0.05144876]
[1740643174457,6.0388883,141.29,141.28,0.05144876]
[1740643175454,6.0388883,141.29,141.22,1.8541]
[1740643175455,4.9588,141.28,141.22,1.8541]
[1740643176169,4.9589,141.27,141.22,1.8541]
[1740643176566,4.9589,141.27,141.23,0.04819321]
[1740643176567,0.04707539,141.26,141.23,0.04819321]
[1740643179567,5.00637539,141.26,141.23,0.04819321]
[1740643180372,0.04707539,141.26,141.23,0.04819321]
[1740643180965,5.00637539,141.26,141.23,0.04819321]
[1740643181467,4.9598,141.25,141.23,0.04819321]
[1740643182167,4.9599,141.24,141.23,0.04819321]
[1740643186975,4.962,141.19,141.15,192.68]
[1740643187177,0.4947,141.28,141.15,1.9649]
[1740643187379,1.08100627,141.27,141.15,1.9649]
[1740643187677,4.9623,141.18,141.15,1.9649]
[1740643188078,0.04850324,141.18,141.15,2.01715262]
[1740643188274,4.9627,141.16,141.15,2.01715262]
[1740643188475,0.04850324,141.18,141.15,2.01715262]
[1740643188877,4.9624,141.17,141.15,2.01715262]
[1740643189273,0.04850324,141.18,141.15,2.01715262]
[1740643189973,0.04850324,141.18,141.15,0.05225262]
[1740643190479,1.12936221,141.18,141.15,0.05225262]
[1740643190684,0.04850324,141.18,141.15,0.05225262]
[1740643192280,5.01060324,141.18,141.15,0.05225262]
[1740643193279,4.9624,141.17,141.15,0.05225262]
[1740643194275,4.9627,141.16,141.15,0.05225262]
[1740643197385,6.04390613,141.16,141.15,0.05225262]
[1740643197682,1.08120613,141.16,141.1,1.8634]
[1740643197878,4.0157,141.17,141.1,1.8634]
[1740643198077,1.08120613,141.16,141.06,1.9961]
[1740643198282,11.18,141.15,140.98,39.36282349]
[1740643198483,1.57910613,141.14,140.99,1.9784]
[1740643198686,4.967,141.04,140.99,1.9784]
[1740643198884,4.967,141.04,141.0,0.04680577]
[1740643199078,0.05235863,141.03,141.0,0.04680577]
[1740643199284,17.45844705,141.17,141.0,21.32680577]
[1740643199477,1.08071432,141.16,140.99,13.1584]
[1740643199784,4.9644,141.12,140.99,13.1584]
[1740643199974,4.0157,141.17,141.0,4.9683]
[1740643200379,4.0157,141.17,140.99,13.1584]
[1740643200576,4.0157,141.17,141.07,0.04648024]
[1740643200782,0.04829145,141.09,141.07,0.04648024]
[1740643201083,4.9648,141.11,141.0,4.968]
[1740643201287,0.04880435,141.06,141.03,0.05179512]
[1740643201584,4.9648,141.11,141.03,0.05179512]
[1740643201985,4.0157,141.17,141.03,0.05179512]
[1740643202284,1.08096739,141.16,141.01,4.9677]
[1740643202680,0.05049052,141.1,141.07,0.04859804]
[1740643202884,1.08096739,141.16,141.01,4.9677]
[1740643203082,0.05340416,141.07,141.04,0.0491203]
[1740643203279,1.0809977,141.15,141.01,4.9677]
[1740643203581,4.9649,141.1,141.01,4.9677]
[1740643204084,4.0157,141.17,141.01,4.9677]
[1740643204581,4.0157,141.17,140.99,13.1584]
[1740643204787,1.08074936,141.16,140.99,13.1584]
[1740643205087,0.04740035,141.09,141.07,0.05422711]
[1740643205275,1.08074936,141.16,140.99,13.1584]
[1740643205478,1.08074936,141.16,140.99,34.4184]
[1740643205881,1.08074936,141.16,140.99,13.1584]
[1740643206286,4.0157,141.17,140.99,13.1584]
[1740643206584,0.04460868,141.09,141.06,0.05010839]
[1740643206887,1.08044845,141.16,140.99,12.20850839]
[1740643207088,1.08044845,141.16,140.99,207.20850839]
[1740643207681,1.08044845,141.16,141.07,4.9659]
[1740643207882,4.0157,141.17,141.08,3.8263]
[1740643208086,0.04685379,141.13,141.1,0.05082088]
[1740643208284,1.08027234,141.15,141.03,4.9671]
[1740643208483,0.05227916,141.13,141.1,0.05438605]
[1740643208683,1.08027234,141.13,141.0,15.0263]
[1740643208880,0.6542,141.16,141.0,15.0263]
[1740643209087,1.08007415,141.15,141.0,15.0263]
[1740643209286,0.04826562,141.09,141.07,0.05139795]
[1740643209485,1.08007415,141.15,141.07,0.05139795]
[1740643209685,0.04941895,141.09,141.07,0.05139795]
[1740643209886,1.08007415,141.15,141.07,0.05139795]
[1740643210089,4.0157,141.17,141.07,0.05139795]
[1740643210285,4.0157,141.17,141.0,36.2863]
[1740643210588,1.9882,141.17,141.0,231.2863]
[1740643211188,0.04700995,141.1,141.07,0.04582878]
[1740643213793,5.01190995,141.1,141.07,0.04582878]
[1740643214090,0.04700995,141.1,141.07,0.04582878]
[1740643216084,5.01190995,141.1,141.07,0.04582878]
[1740643217085,0.04700995,141.1,141.07,0.04582878]
[1740643217291,2.03,141.16,141.07,0.04582878]
[1740643217485,1.07824529,141.15,141.07,0.04582878]
[1740643217692,4.9652,141.09,141.05,1.8862]
[1740643217992,2.03,141.16,141.05,1.8862]
[1740643218192,4.9652,141.09,141.05,1.8862]
[1740643218692,4.9652,141.09,141.06,0.04515814]
[1740643218893,0.04922097,141.08,141.06,0.04515814]
[1740643220790,5.01482097,141.08,141.06,0.04515814]
[1740643222704,4.9659,141.07,141.06,0.04515814]
[1740643230303,2.03,141.16,141.06,0.04515814]
[1740643230499,1.07941918,141.15,141.05,1.8862]
[1740643231105,4.9651,141.1,141.05,1.8862]
[1740643231308,2.03,141.16,141.05,1.8862]
[1740643231506,0.04982569,141.09,141.07,4.9659]
[1740643231710,1.07814711,141.15,141.07,4.9659]
[1740643232011,4.9644,141.12,141.06,8.7649]
[1740643232205,2.03,141.16,141.06,8.7649]
[1740643232404,1.07811042,141.15,141.06,3.7989]
[1740643232805,2.03,141.16,141.05,1.8862]
[1740643233005,0.0501346,141.12,141.09,0.05241837]
[1740643233407,4.9648,141.1,141.09,0.05241837]
[1740643235912,4.9646,141.11,141.09,0.05241837]
[1740643236303,0.0501346,141.12,141.09,0.05241837]
[1740643237519,118.2755583,141.16,141.09,0.05241837]
[1740643237810,4.9638,141.13,141.09,0.05241837]
[1740643238002,118.2755583,141.16,141.09,0.05241837]
[1740643238408,120.1796583,141.16,141.11,4.9642]
[1740643238706,115.2168583,141.16,141.12,2.0119]
[1740643238906,115.2168583,141.16,141.1,1.8397]
[1740643238907,0.04967945,141.15,141.1,1.8397]
[1740643239108,4.9638,141.13,141.12,0.04665648]
[1740643242311,0.04967945,141.15,141.12,0.04665648]
[1740643242511,4.9635,141.14,141.12,0.04665648]
[1740643244122,5.01287945,141.15,141.12,0.04665648]
[1740643245018,0.04967945,141.15,141.12,0.04665648]
[1740643246116,0.04967945,141.15,141.02,15.0425]
[1740643246317,4.9652,141.09,141.03,4.9671]
[1740643247321,0.05430392,141.08,141.05,0.0484755]
[1740643248319,5.01990392,141.08,141.05,0.0484755]
[1740643252317,0.05430392,141.08,141.05,0.0484755]
[1740643252520,4.9662,141.06,141.05,0.0484755]
[1740643256928,0.05430392,141.08,141.05,0.0484755]
[1740643260229,5.02020392,141.08,141.05,0.0484755]
[1740643262732,0.05430392,141.08,141.05,0.0484755]
[1740643262937,4.9662,141.06,141.05,0.0484755]
[1740643263140,2.0312,141.07,140.98,1.8401]
[1740643264043,2.0312,141.07,141.01,4.9679]
[1740643264242,0.0475273,141.04,141.01,5.01640253]
[1740643264446,0.0475273,141.04,141.01,0.04850253]
[1740643269444,0.0475273,141.04,140.94,1.958]
[1740643269638,1.07369731,141.05,140.94,1.958]
[1740643269942,4.9689,140.99,140.94,1.958]
[1740643270237,21.27299966,140.98,140.91,1.51763313]
[1740643270440,4.9715,140.91,140.9,5.584e-05]
[1740643270737,11.3,140.95,140.9,5.584e-05]
[1740643271167,0.04918726,140.94,140.9,5.584e-05]
[1740643271846,0.04918726,140.94,140.91,0.05076593]
[1740643272247,21.32918726,140.94,140.91,0.05076593]
[1740643272545,0.04918726,140.94,140.91,0.05076593]
[1740643275447,58.0886641,140.98,140.91,0.05076593]
[1740643275945,9.70387063,141.02,140.92,4.9712]
[1740643276134,9.70387063,141.02,140.93,1.9744]
[1740643276738,0.04915201,140.99,140.96,0.04497114]
[1740643283147,0.04915201,140.99,140.89,3.8237]
[1740643283343,1.07439391,141.01,140.89,3.8237]
[1740643283751,6.04269391,141.01,140.89,3.8237]
[1740643283954,1.07439391,141.0,140.89,3.8237]
[1740643284555,0.04733058,140.96,140.93,0.04970142]
[1740643286553,5.01713058,140.96,140.93,0.04970142]
[1740643286751,1.0741251,140.95,140.93,0.04970142]
[1740643287751,0.04733058,140.96,140.93,0.04970142]
[1740643288454,1.12132492,140.96,140.93,0.04970142]
[1740643289054,0.04733058,140.96,140.93,0.04970142]
[1740643289458,1.12132492,140.96,140.93,0.04970142]
[1740643289648,0.04733058,140.96,140.93,0.04970142]
[1740643294855,9.70387063,141.0,140.93,0.04970142]
[1740643295251,14.67227063,141.0,140.93,0.04970142]
[1740643296164,0.04929436,140.98,140.93,0.04970142]
[1740643296555,0.04929436,140.98,140.93,5.02050142]
[1740643296751,14.67227063,141.0,140.93,5.02050142]
[1740643297458,4.9684,141.0,140.93,5.02050142]
[1740643297659,4.9684,141.0,140.94,4.9705]
[1740643297859,0.05060895,140.98,140.94,4.9705]
[1740643298059,4.9684,141.0,140.94,4.9705]
[1740643299259,0.05023063,140.98,140.94,4.9705]
[1740643299458,4.9684,141.0,140.94,4.9705]
[1740643299763,4.9687,140.99,140.94,4.9705]
[1740643300366,4.9685,141.0,140.94,4.9705]
[1740643300663,0.04605567,140.98,140.95,0.04511828]
[1740643300858,0.04605567,140.98,140.95,5.01511828]
[1740643301660,4.9681,141.01,140.96,4.9696]
[1740643301861,38.70223481,141.05,140.96,4.9696]
[1740643302063,4.968,141.01,140.96,4.9696]
[1740643302461,38.70223481,141.05,140.96,4.9696]
[1740643302660,38.70223481,141.05,140.88,227.68]
[1740643302864,0.05221914,141.02,140.99,0.05207455]
[1740643303061,38.70223481,141.05,140.96,11.38]
[1740643303258,38.70223481,141.05,140.99,2.0293]
[1740643303467,38.70223481,141.05,141.0,4.9683]
[1740643303766,38.70223481,141.05,140.99,2.0293]
[1740643304264,0.0374701,141.03,141.01,0.04719187]
[1740643306068,43.66903481,141.05,141.01,5.01519187]
[1740643306768,4.9668,141.05,141.01,5.01519187]
[1740643307066,4.9664,141.06,141.01,5.01519187]
[1740643307667,4.9664,141.06,141.01,0.04719187]
[1740643307870,14.66987063,141.07,141.01,0.04719187]
[1740643308170,9.70387063,141.07,141.01,0.04719187]
[1740643308670,9.70387063,141.07,141.04,4.9667]
[1740643308865,9.70387063,141.07,141.0,1.9065]
[1740643309063,9.70387063,141.07,141.04,0.04573053]
[1740643309661,4.966,141.07,141.04,0.04573053]
[1740643310561,4.9666,141.05,141.04,0.04573053]
[1740643311278,38.70223481,141.09,141.04,0.04573053]
[1740643312379,4.9652,141.09,141.04,0.04573053]
[1740643312776,4.9652,141.09,141.04,5.01243053]
[1740643312979,38.70223481,141.1,141.04,0.04573053]
[1740643313177,43.66713481,141.1,141.04,0.04573053]
[1740643313479,38.70223481,141.1,141.04,0.04573053]
[1740643313780,4.9656,141.08,141.04,0.04573053]
[1740643314180,4.9656,141.08,141.04,5.01243053]
[1740643314480,4.9656,141.08,141.04,0.04573053]
[1740643315075,38.70223481,141.1,141.04,0.04573053]
[1740643315276,4.9653,141.09,141.05,4.9664]
[1740643315478,38.70223481,141.1,141.05,1.8527]
[1740643315678,4.9658,141.08,141.05,1.8527]
[1740643316081,38.70223481,141.1,141.05,1.8527]
[1740643316276,4.9662,141.07,141.05,1.8527]
[1740643316882,4.9662,141.06,141.04,0.04573053]
[1740643317083,38.70223481,141.13,141.01,1.9011]
[1740643317274,1.07251649,141.12,141.04,0.04713431]
[1740643317480,15.15138194,141.12,141.01,1.9011]
[1740643317681,1.07236838,141.11,141.07,0.05342791]
[1740643317984,4.9665,141.06,141.01,1.9011]
[1740643318183,14.07886545,141.12,141.01,6.8691]
[1740643318385,1.07222827,141.11,141.01,1.9011]
[1740643318985,0.0520526,141.07,141.05,0.04908242]
[1740643326789,5.0180526,141.07,141.05,0.04908242]
[1740643326987,0.0520526,141.07,141.05,0.04908242]
[1740643330993,4.9662,141.06,141.05,0.04908242]
[1740643331386,1.07329927,141.06,140.97,6.9125]
[1740643331592,1.07329927,141.05,140.97,1.9431]
[1740643331895,14.10072973,141.1,140.97,1.9431]
[1740643332191,4.9672,141.04,140.97,1.9431]
[1740643332694,0.04520896,141.02,140.99,0.04922035]
[1740643332898,14.10072973,141.1,140.97,1.9431]
[1740643333084,1.07341767,141.09,140.97,1.9431]
[1740643333387,4.9672,141.04,140.97,6.9124]
[1740643333591,0.05327981,141.04,141.02,0.04946135]
[1740643333788,0.05327981,141.04,140.97,1.9431]
[1740643333987,4.9673,141.03,141.02,0.0546215]
[1740643334187,0.05327981,141.04,140.96,3.9111]
[1740643334487,4.9678,141.02,141.01,0.04641812]
[1740643334683,0.0461335,141.01,140.91,1.964]
[1740643334881,11.32,141.04,140.91,1.964]
[1740643334882,1.07369904,141.02,140.91,1.964]
[1740643335082,4.9693,140.98,140.91,1.964]
[1740643335293,11.32,141.04,140.91,1.964]
[1740643335493,1.07352836,141.03,140.91,1.964]
[1740643335693,4.9698,140.97,140.91,1.964]
[1740643335893,4.9698,140.97,140.96,0.05363385]
[1740643336195,0.05294909,140.98,140.95,0.05082203]
[1740643336394,11.32,141.04,140.95,0.05082203]
[1740643336395,1.07354872,141.03,140.95,0.05082203]
[1740643336693,4.97,140.96,140.89,1.964]
[1740643336993,4.97,140.96,140.91,0.04741639]
[1740643337189,0.04905238,140.94,140.91,0.04741639]
[1740643339688,5.01955238,140.94,140.91,0.04741639]
[1740643340694,0.04905238,140.94,140.91,0.04741639]
[1740643340890,4.9709,140.93,140.91,0.04741639]
[1740643341092,0.04905238,140.94,140.91,0.04741639]
[1740643341589,4.9712,140.92,140.91,0.04741639]
[1740643343796,4.9709,140.93,140.91,0.04741639]
[1740643343994,0.04905238,140.94,140.91,0.04741639]
[1740643345000,0.1575,141.03,140.91,0.04741639]
[1740643345198,1.07301447,141.02,140.91,13.225]
[1740643345394,14.10072973,141.08,140.95,4.9701]
[1740643345395,4.967,141.04,140.95,4.9701]
[1740643345599,4.967,141.04,140.96,1.9838]
[1740643346198,0.04830074,141.01,140.99,0.0449361]
[1740643346502,0.16,141.1,140.96,6.9535]
[1740643346696,0.04919308,141.01,140.99,0.04661577]
[1740643346891,1.07277292,141.09,140.99,0.04661577]
[1740643347097,1.07277292,141.09,140.99,1.8538]
[1740643347405,4.9665,141.06,140.99,1.8538]
[1740643347796,0.1586,141.13,140.99,1.8538]
[1740643348104,4.9674,141.03,141.01,0.05216494]
[1740643348401,0.1586,141.13,140.99,1.8538]
[1740643348593,0.04805086,141.03,141.01,0.04911504]
[1740643348791,1.07264063,141.12,140.99,1.8538]
[1740643348997,0.04637834,141.03,141.01,0.04801281]
[1740643349197,4.9666,141.06,140.99,1.8538]
[1740643349401,0.04783875,141.03,141.01,0.04982022]
[1740643350097,1.07267902,141.12,141.01,0.04982022]
[1740643350298,4.9656,141.08,141.0,6.9354]
[1740643350500,0.1586,141.13,141.0,6.9354]
[1740643350702,1.07277421,141.12,141.0,1.9671]
[1740643350900,1.07277421,141.12,141.01,4.9677]
[1740643350901,4.9649,141.1,141.01,4.9677]
[1740643351100,11.32,141.17,141.01,4.9677]
[1740643351301,1.07286847,141.16,141.04,0.04600194]
[1740643351502,4.9651,141.1,141.01,4.9677]
[1740643351803,14.31228471,141.18,141.09,0.05442675]
[1740643352007,4.9645,141.11,141.03,11.32]
[1740643352202,4.9645,141.11,141.04,4.9668]
[1740643352401,4.9645,141.11,141.03,11.32]
[1740643352402,14.38858471,141.18,141.06,0.04972908]
[1740643352607,4.9642,141.12,141.03,11.32]
[1740643352807,14.18078471,141.18,141.04,4.9669]
[1740643353014,1.07300897,141.17,141.11,0.0525078]
[1740643353405,4.9641,141.12,141.11,0.0525078]
[1740643353609,0.0763,141.18,141.11,0.0525078]
[1740643353803,4.9641,141.13,141.11,0.0525078]
[1740643354007,377.80805377,141.19,141.11,0.0525078]
[1740643354310,4.9641,141.12,141.11,0.0525078]
[1740643359504,324.64155866,141.19,141.02,1.9755]
[1740643359705,1.07290831,141.18,141.02,1.9755]
[1740643359909,15.1535808,141.18,141.02,1.9755]
[1740643360104,4.9668,141.05,141.01,1.9378]
[1740643360604,11.32,141.14,140.98,11.32]
[1740643360808,0.05210276,141.04,141.02,0.05020676]
[1740643361210,4.9684,141.0,140.94,17.1543]
[1740643361711,4.9684,141.0,140.96,0.04718293]
[1740643362009,0.05435208,140.98,140.96,0.04718293]
[1740643373216,4.9694,140.97,140.96,0.04718293]
[1740643374723,5.02355208,140.98,140.96,0.04718293]
[1740643374926,0.05435208,140.98,140.96,0.04718293]
[1740643375419,4.9694,140.97,140.96,0.04718293]
[1740643384627,0.05435208,140.98,140.96,0.04718293]
[1740643387421,5.02345208,140.98,140.96,0.04718293]
[1740643387620,0.05435208,140.98,140.96,0.04718293]
[1740643387821,315.28,140.97,140.75,56.44759309]
[1740643388029,21.28,140.95,140.75,56.44759309]
[1740643388225,12.59311233,140.94,140.75,39.10590825]
[1740643388426,1.07311233,140.93,140.75,39.10590825]
[1740643388626,1.07311233,140.93,140.78,4.9761]
[1740643388928,0.0508095,140.87,140.84,0.05458303]
[1740643389331,1.07283452,140.93,140.79,1.8489]